[Event "European Women Blitz-ch 2024"]
[Site "Monaco"]
[Date "2025.01.10"]
[Round "9.8"]
[White "Kulon, Klaudia"]
[Black "Narva, Mai"]
[Result "1-0"]
[Annotator "TA"]
[ECO "A36"]
[WhiteElo "2393"]
[BlackElo "2398"]
[PlyCount "73"]
[EventDate "2025.01.06"]
[EventType "swiss"]
[EventCountry "MNC"]
[SourceTitle "playchess.com"]
[Source "ChessBase"]
[SourceQuality "1"]
[TimeControl "180+2"]

{[%evp 19,73,-5,43,6,9,0,0,8,6,11,39,48,50,39,48,34,69,69,34,32,87,104,102,68,151,158,154,95,115,129,129,114,104,86,59,92,91,82,347,117,108,108,267,274,547,536,456,263,312,225,494,493,5310,4134,29984,29985]} 1. c4 {[%emt 0:00:01]} g6 {[%emt 0:00:01]} 2. g3 {[%emt 0:00:01]} Bg7 {[%emt 0:00:02]} 3. Bg2 {[%emt 0:00:01]} c5 {[%emt 0:00:02]} 4. Nc3 {[%emt 0:00:01]} Nc6 {[%emt 0:00:02]} 5. a3 {[%emt 0:00:01]} e6 {[%emt 0:00:28]} 6. e4 {[%emt 0:00:01]} Nge7 {[%emt 0:00:06]} 7. Nge2 {[%emt 0:00:01]} O-O {[%emt 0:00:05]} 8. O-O {[%emt 0:00:01]} Nd4 {[%emt 0:00:15]} 9. d3 {[%emt 0:00:07]} d6 {[%emt 0:00:09]} 10. Rb1 {[%emt 0:00:06]} a5 {[%emt 0:00:09]} (10... b6 $11) 11. h3 {[%emt 0:00:05]} Bd7 {[%emt 0:00:10]} 12. b4 {[%emt 0:00:24]} axb4 {[%emt 0:00:26]} 13. axb4 {[%emt 0:00:01]} cxb4 {[%emt 0:00:02]} 14. Rxb4 {[%emt 0:00:02]} Bc6 {[%emt 0:00:05]} 15. Nxd4 {[%emt 0:00:07]} Bxd4 {[%emt 0:00:02]} 16. Ne2 {[%emt 0:00:01]} Bg7 {[%emt 0:00:05]} 17. d4 {[%emt 0:00:04]} d5 {[%emt 0:00:08]} 18. cxd5 {[%emt 0:00:09]} exd5 {[%emt 0:00:01]} 19. e5 {[%emt 0:00:01]} Qa5 {[%emt 0:00:20]} (19... Nf5 $14) 20. Bd2 $16 {[%emt 0:00:04]} Qa6 {[%emt 0:00:08]} 21. Nc3 {[%emt 0:00:06] Repels Ba4} Rfd8 {[%emt 0:00:08]} (21... Qa5 $14) 22. Bg5 {[%emt 0:00:11]} Bf8 {[%emt 0:00:04][%cal Oe7f5]} 23. Re1 {[%emt 0:00:15]} ({White should try} 23. Qd2) 23... Qa5 {[%emt 0:00:13]} 24. Rb3 {[%emt 0:00:06] White is much more active.} Re8 {[%emt 0:00:05]} 25. Bd2 {[%emt 0:00:12][%cal Oc3d5]} Qa7 {[%emt 0:00:09]} 26. Bc1 {[%emt 0:00:12]} Nf5 {[%emt 0:00:06]} 27. Nxd5 {[%emt 0:00:05]} (27. Bxd5 Nxd4 28. Rb1 Red8) 27... Bxd5 {[%emt 0:00:16]} 28. Bxd5 {[%emt 0:00:02]} Qxd4 $2 {[%emt 0:00:02][%mdl 8192]} (28... Qa5 $16 29. Bxb7 Nxd4) 29. Qxd4 $2 {[%emt 0:00:16]} (29. Bxb7 Ra1 30. Kg2 Bh6 $11) (29. Rxb7 $18 Kh8 30. Bxf7 (30. Rxf7 Rad8 $18)) 29... Nxd4 {[%emt 0:00:01]} 30. Rxb7 {[%emt 0:00:01]} Rab8 $2 {[%emt 0:00:08]} (30... Ne6 $16 {was worth a try.} 31. Kg2 Ra1) 31. Rxf7 $18 {[%emt 0:00:07]} Kh8 $2 {[%emt 0:00:02]} (31... Rbd8) 32. e6 {[%emt 0:00:08][%cal Be5e6,Be6e7][%mdl 32]} Bg7 {[%emt 0:00:02]} 33. Bf4 {[%emt 0:00:04]} (33. Kg2 $142) 33... Rbd8 {[%emt 0:00:01]} 34. Be5 {[%emt 0:00:23]} Bxe5 $2 {[%emt 0:00:03]} (34... Rxd5 35. Bxg7+ (35. Rxg7 $2 {loses.} Nf3+ 36. Kh1 Rxe5 $19) 35... Kg8) 35. Rxe5 {[%emt 0:00:01] Threatens to win with e7.} Rd6 {[%emt 0:00:02]} (35... Rxd5 $142 36. Rxd5 Nxe6) 36. e7 {[%emt 0:00:04] White threatens Rf8+ and mate.} Kg8 {[%emt 0:00:03]} 37. Rf8+ {[%emt 0:00:01]} 1-0

[Event "European Women Blitz-ch 2024"]
[Site "Monaco"]
[Date "2025.01.10"]
[Round "9.9"]
[White "Stefanova, Antoaneta"]
[Black "Atalik, Ekaterina"]
[Result "0-1"]
[Annotator "TA"]
[ECO "D04"]
[WhiteElo "2418"]
[BlackElo "2395"]
[PlyCount "84"]
[EventDate "2025.01.06"]
[EventType "swiss"]
[EventCountry "MNC"]
[SourceTitle "playchess.com"]
[Source "ChessBase"]
[SourceQuality "1"]
[TimeControl "180+2"]

{[%evp 9,84,4,0,0,13,16,28,10,33,39,119,90,93,-15,0,-45,-39,-69,-56,-77,-65,-68,-47,-72,-65,-65,-65,-66,-65,-107,-67,-91,-90,-213,-212,-233,-233,-231,-237,-568,-584,-579,-582,-641,-641,-612,-557,-632,-629,-544,-579,-673,-673,-886,-887,-1037,-1067,-1066,-1033,-1689,-1684,-1668,-1368,-2139,-2145,-1866,-1871,-6303,-1158,-3204,-3087,-29972,-5418,-29971,-29977,-29976,-29977]} 1. d4 {[%emt 0:00:01]} Nf6 {[%emt 0:00:01]} 2. Nf3 {[%emt 0:00:00]} d5 {[%emt 0:00:02]} 3. e3 {[%emt 0:00:02]} c5 {[%emt 0:00:05]} 4. Nbd2 {[%emt 0:00:02]} cxd4 {[%emt 0:00:04]} 5. exd4 {[%emt 0:00:01]} Nc6 {[%emt 0:00:01]} 6. c3 {[%emt 0:00:03]} Bg4 {[%emt 0:00:05]} 7. Bb5 {[%emt 0:00:05]} e6 {[%emt 0:00:02]} 8. Qa4 {[%emt 0:00:05]} Qc7 {[%emt 0:00:13]} 9. Ne5 {[%emt 0:00:20][%cal Re5c6]} Rc8 {[%emt 0:00:08]} (9... a6 $14) 10. O-O {[%emt 0:00:42]} Bd6 {[%emt 0:00:08]} 11. f4 {[%emt 0:00:13]} (11. Nxg4 $16 Nxg4 12. h3) 11... O-O $11 {[%emt 0:00:10]} 12. Bd3 {[%emt 0:00:05]} Bf5 {[%emt 0:00:06][%cal Rd6e5]} 13. Bxf5 {[%emt 0:00:08]} exf5 {[%emt 0:00:02]} 14. Ndf3 {[%emt 0:00:04]} Ne4 {[%emt 0:00:12]} 15. Qb5 {[%emt 0:00:07]} Ne7 {[%emt 0:00:05]} 16. Qe2 {[%emt 0:00:25]} f6 {[%emt 0:00:03]} 17. Nd3 {[%emt 0:00:02]} Rfe8 {[%emt 0:00:04]} 18. g3 {[%emt 0:00:54]} Nc6 {[%emt 0:00:02][%cal Oe4g3,Be7c6,Bc6a5,Ba5c4][%mdl 32]} 19. Qg2 {[%emt 0:00:03]} Qd7 {[%emt 0:00:15]} 20. Bd2 {[%emt 0:00:02]} Na5 {[%emt 0:00:03] Black is much more active.} 21. Rae1 {[%emt 0:00:04] [#]} (21. Rad1 $17) 21... Qb5 $1 $19 {[%emt 0:00:05]} 22. Nb4 {[%emt 0:00:13]} Bxb4 {[%emt 0:00:08]} 23. cxb4 {[%emt 0:00:01]} Nc4 {[%emt 0:00:01][%cal Oc4d2] Excellent horsemanship.} 24. Bc3 $2 {[%emt 0:00:01]} (24. Bc1 {nothing else works.}) 24... Nxc3 {[%emt 0:00:07]} 25. bxc3 {[%emt 0:00:01]} Ne3 {[%emt 0:00:03]} 26. Qd2 {[%emt 0:00:03]} Nxf1 {[%emt 0:00:03]} 27. Rxf1 {[%emt 0:00:01]} Qe2 {[%emt 0:00:02]} 28. Qc1 {[%emt 0:00:02]} Qe3+ {[%emt 0:00:01]} 29. Qxe3 {[%emt 0:00:02]} Rxe3 {[%emt 0:00:02][%mdl 4096] Endgame KRR-KRN} 30. Nh4 {[%emt 0:00:01]} g6 {[%emt 0:00:03]} 31. g4 {[%emt 0:00:01]} fxg4 {[%emt 0:00:06]} 32. f5 {[%emt 0:00:01]} g5 {[%emt 0:00:02]} 33. Ng2 {[%emt 0:00:01]} Rexc3 {[%emt 0:00:04]} 34. Re1 {[%emt 0:00:01]} Rc1 {[%emt 0:00:01]} 35. Kf2 {[%emt 0:00:01]} Rxe1 {[%emt 0:00:02]} 36. Nxe1 {[%emt 0:00:00] KR-KN} Rc4 {[%emt 0:00:02]} 37. Nd3 {[%emt 0:00:01]} Rxd4 {[%emt 0:00:02]} 38. Ke3 {[%emt 0:00:00]} Re4+ {[%emt 0:00:02]} 39. Kd2 {[%emt 0:00:01]} h5 {[%emt 0:00:03] White must now prevent ...Rd4.} 40. a3 {[%emt 0:00:00]} b6 {[%emt 0:00:01]} (40... Rd4 $142 41. Ke3 Rxd3+ 42. Kxd3 h4 43. Ke2 d4 44. Kf2 d3 45. Kf1 g3 46. hxg3 hxg3 47. a4 g2+ 48. Kf2 g1=Q+ (48... d2 {is a self mate.} 49. Ke2 g1=Q 50. Kxd2 g4 51. Kd3 g3 52. Kc4 g2 53. a5 Qc1+ 54. Kd5 g1=Q 55. b5 Qgc5+ 56. Ke6 Qe5+ 57. Kd7 Qcc7#) 49. Kxg1 d2 50. Kg2 d1=Q (50... d1=R $2 51. Kh3 $19) 51. Kf2 g4 (51... Qxa4 52. b5 Qxb5 53. Ke3 g4 54. Ke4 Qc6+ 55. Ke3 g3 56. Ke2 g2 57. Ke3 g1=Q+ 58. Kd2 Qf2+ 59. Kd3 Qcc2#) 52. a5 Qd2+ 53. Kg3 Qe2 (53... Qxb4 54. Kf2 Qd2+ 55. Kg3 Qe2 56. a6 Qf3+ 57. Kh2 Qf2+ 58. Kh1 g3 59. axb7 Qh2#) 54. a6 Qf3+ (54... bxa6 55. b5 Qf3+ 56. Kh2 Qf2+ 57. Kh1 g3 58. bxa6 Qh2#) 55. Kh2 Qf2+ (55... bxa6 56. Kg1 g3 57. b5 Qf2+ 58. Kh1 Qh2#) 56. Kh1 g3 57. axb7 Qh2#) 41. Nf2 {[%emt 0:00:02]} Rf4 {[%emt 0:00:02]} 42. Nd3 {[%emt 0:00:02]} Rd4 {[%emt 0:00:02]} 0-1

[Event "European Women Blitz-ch 2024"]
[Site "Monaco"]
[Date "2025.01.10"]
[Round "9.10"]
[White "Injac, Teodora"]
[Black "Vega Gutierrez, Sabrina"]
[Result "0-1"]
[Annotator "TA"]
[ECO "B36"]
[WhiteElo "2453"]
[BlackElo "2393"]
[PlyCount "111"]
[EventDate "2025.01.06"]
[EventType "swiss"]
[EventCountry "MNC"]
[SourceTitle "playchess.com"]
[Source "ChessBase"]
[SourceQuality "1"]
[TimeControl "180+2"]

{[%evp 18,111,52,30,44,31,54,58,55,58,60,55,58,54,60,58,84,89,86,79,83,78,94,92,97,98,116,77,110,77,141,101,101,101,101,101,101,91,102,74,83,74,89,31,31,24,24,24,211,216,174,31,31,31,31,31,31,31,31,0,0,0,0,0,0,0,0,0,0,-161,-161,-178,-8,-8,-8,-8,-8,-8,-8,-8,-8,-8,0,-8,-8,-8,-8,-29982,-29983,-29983,-29984,-29986,-29987,-29987,-29988,-29988]} 1. Nf3 {[%emt 0:00:01]} c5 {[%emt 0:00:01]} 2. c4 {[%emt 0:00:01]} Nf6 {[%emt 0:00:02]} 3. Nc3 {[%emt 0:00:01]} g6 {[%emt 0:00:01]} 4. d4 {[%emt 0:00:01]} cxd4 {[%emt 0:00:04]} 5. Nxd4 {[%emt 0:00:01]} Nc6 {[%emt 0:00:03]} 6. e4 {[%emt 0:00:00]} Nxd4 {[%emt 0:00:10]} 7. Qxd4 {[%emt 0:00:02]} d6 {[%emt 0:00:01]} 8. Be3 {[%emt 0:00:14]} Bg7 {[%emt 0:00:02]} 9. Be2 {[%emt 0:00:04]} O-O {[%emt 0:00:05]} 10. Qd2 {[%emt 0:00:01]} a5 {[%emt 0:00:30]} 11. O-O {[%emt 0:00:22]} Bd7 {[%emt 0:00:01]} 12. b3 {[%emt 0:00:21]} Bc6 {[%emt 0:00:02]} 13. f3 {[%emt 0:00:01]} Nd7 {[%emt 0:00:25]} 14. Rac1 {[%emt 0:00:01]} Nc5 {[%emt 0:00:07]} 15. Rfd1 {[%emt 0:00:07]} Qb6 {[%emt 0:00:16]} 16. Nd5 {[%emt 0:00:06]} Bxd5 {[%emt 0:00:11]} 17. cxd5 {[%emt 0:00:01]} Qb4 {[%emt 0:00:32]} 18. Rc2 {[%emt 0:00:03]} Qxd2 {[%emt 0:00:17]} 19. Rdxd2 {[%emt 0:02:12]} (19. Rcxd2 Rfc8 $11) 19... Rfc8 {[%emt 0:00:06]} 20. Bb5 {[%emt 0:00:00] Black is weak on the light squares} Na6 {[%emt 0:00:31]} 21. Bxa6 {[%emt 0:00:00]} bxa6 {[%emt 0:00:01]} 22. Kf1 {[%emt 0:00:00]} Kf8 {[%emt 0:00:03]} 23. Ke2 {[%emt 0:00:00]} Ke8 {[%emt 0:00:01]} (23... Bc3 $142) 24. Kd3 {[%emt 0:00:00]} Kd7 {[%emt 0:00:05]} 25. Bb6 {[%emt 0:00:00]} a4 {[%emt 0:00:04]} 26. bxa4 {[%emt 0:00:00]} f5 {[%emt 0:00:09]} 27. a5 {[%emt 0:00:00]} (27. Rxc8 {simplifies} Rxc8 28. Rc2 Rxc2 29. Kxc2 fxe4 30. fxe4 Be5 31. h3) 27... fxe4+ {[%emt 0:00:02]} 28. fxe4 {[%emt 0:00:00]} Be5 {[%emt 0:00:01]} 29. h3 {[%emt 0:00:03]} e6 {[%emt 0:00:01]} 30. dxe6+ {[%emt 0:00:07]} (30. Rf2 $16 {And now Rf7+ would win.} exd5 31. exd5) 30... Kxe6 $14 {[%emt 0:00:01]} 31. Rxc8 {[%emt 0:00:05]} Rxc8 $16 {[%emt 0:00:01][%mdl 4096] Endgame KRB-KRB. White is a pawn up.} 32. Rc2 {[%emt 0:00:01] Prevents Rc3+.} Rf8 $2 {[%emt 0:00:04]} (32... Rxc2 $11 {and Black has nothing to worry.} 33. Kxc2 Bg3) 33. Rc7 $18 {[%emt 0:00:06]} Rf7 {[%emt 0:00:03]} 34. Rxf7 {[%emt 0:00:03]} (34. Rc8 $1 $18) 34... Kxf7 {[%emt 0:00:01] KB-KB. White is a pawn up.} 35. Kc4 {[%emt 0:00:00]} Ke6 {[%emt 0:00:01]} 36. Bd4 {[%emt 0:00:04]} Bg3 {[%emt 0:00:02]} 37. Bc3 {[%emt 0:00:01]} h5 {[%emt 0:00:02]} 38. a4 {[%emt 0:00:03]} Bf2 {[%emt 0:00:01]} 39. Bd4 {[%emt 0:00:02]} Be1 {[%emt 0:00:01]} 40. Bb6 {[%emt 0:00:01]} Ke5 {[%emt 0:00:02]} 41. Bc7 {[%emt 0:00:01]} Kxe4 {[%emt 0:00:03]} 42. Bxd6 {[%emt 0:00:03]} Bxa5 {[%emt 0:00:01]} 43. Bb8 $2 {[%emt 0:00:02] [#]} (43. Bb4 $11 {and White is okay.} Bd8 44. Bd2) 43... Ke3 $1 $19 {[%emt 0:00:02]} 44. g4 {[%emt 0:00:02] [#]} hxg4 $2 {[%emt 0:00:04]} (44... h4 $1 $19 {White must now prevent ...Ke4.} 45. Be5 Kf3) 45. hxg4 $11 {[%emt 0:00:01]} Kf3 {[%emt 0:00:01]} 46. g5 {[%emt 0:00:02]} Kg4 {[%emt 0:00:01]} 47. Kd5 {[%emt 0:00:03]} Kxg5 {[%emt 0:00:01]} 48. Kc6 $1 {[%emt 0:00:05]} Bd2 {[%emt 0:00:02]} 49. Bc7 {[%emt 0:00:01]} Kh4 {[%emt 0:00:03]} 50. Kb6 {[%emt 0:00:01]} a5 {[%emt 0:00:01]} 51. Kb5 {[%emt 0:00:01]} g5 {[%emt 0:00:01]} 52. Bxa5 $2 {[%emt 0:00:05][%mdl 8192]} (52. Bd8 $11) 52... Bxa5 {[%emt 0:00:02]} 53. Kxa5 {[%emt 0:00:01]} g4 {[%emt 0:00:01]} 54. Kb5 {[%emt 0:00:02]} g3 {[%emt 0:00:01]} 55. a5 {[%emt 0:00:00]} g2 {[%emt 0:00:01]} 56. a6 {[%emt 0:00:01]} 0-1

[Event "European Women Blitz-ch 2024"]
[Site "Monaco"]
[Date "2025.01.10"]
[Round "9.11"]
[White "Stangl, Anita"]
[Black "Cramling Bellon, Anna"]
[Result "0-1"]
[Annotator "TA"]
[ECO "B33"]
[WhiteElo "2027"]
[BlackElo "2052"]
[PlyCount "42"]
[EventDate "2025.01.06"]
[EventType "swiss"]
[EventCountry "MNC"]
[SourceTitle "playchess.com"]
[Source "ChessBase"]
[SourceQuality "1"]
[TimeControl "180+2"]

{[%evp 11,41,0,12,0,0,-16,0,-2,52,49,57,42,41,35,36,40,80,-46,-32,-124,-124,-359,-355,-634,-601,-1579,-1510,-29997,-29998,-29998,-29999,-29999]} 1. e4 {[%emt 0:00:02]} c5 {[%emt 0:00:02]} 2. Nf3 {[%emt 0:00:00][%cal Bg1f3,Bf3d4,Bd4e2,Be2c3,Bc3d5][%mdl 32]} Nc6 {[%emt 0:00:01]} 3. d4 {[%emt 0:00:00]} cxd4 {[%emt 0:00:01]} 4. Nxd4 {[%emt 0:00:00]} Nf6 {[%emt 0:00:02]} 5. Nc3 {[%emt 0:00:01]} e5 {[%emt 0:00:01]} 6. Nde2 {[%emt 0:00:11]} Bb4 {[%emt 0:00:06]} 7. Bg5 {[%emt 0:00:05]} h6 {[%emt 0:00:11]} 8. Bxf6 {[%emt 0:00:01]} Qxf6 {[%emt 0:00:02]} 9. a3 {[%emt 0:00:02]} Bxc3+ {[%emt 0:00:37]} ({Black should play} 9... Ba5 $11) 10. Nxc3 $14 {[%emt 0:00:07]} O-O {[%emt 0:00:03]} 11. Nd5 {[%emt 0:00:09]} Qg6 {[%emt 0:00:04]} 12. Qd3 {[%emt 0:00:29]} d6 {[%emt 0:00:02]} 13. O-O-O {[%emt 0:00:16]} f5 {[%emt 0:00:13]} 14. exf5 {[%emt 0:00:15]} (14. Nc7 $16 Rb8 15. Qxd6 Qxd6 16. Bc4+ (16. Rxd6 fxe4 17. Bc4+ Kh8 $11) 16... Kh8 17. Rxd6 fxe4 18. Rf1) 14... Bxf5 $15 {[%emt 0:00:03]} 15. Qb3 {[%emt 0:00:16] [#]} (15. Qd2 $15) 15... Kh8 $1 $17 {[%emt 0:00:05]} 16. c3 $2 {[%emt 0:00:16]} (16. Qg3 $17 {was called for.}) 16... Rac8 $19 {[%emt 0:00:05] And now ...Nd4 would win.} 17. Qxb7 $2 {[%emt 0:00:23]} (17. Qa4 Nd4 18. Ne3) 17... Nd4 {[%emt 0:00:20]} 18. Re1 {[%emt 0:00:53]} Rb8 {[%emt 0:00:15]} 19. Qxa7 {[%emt 0:00:05]} Nb3+ {[%emt 0:00:03]} 20. Kd1 {[%emt 0:00:01]} Bc2+ {[%emt 0:00:03]} 21. Ke2 {[%emt 0:00:01]} Qd3# {[%emt 0:00:04]} 0-1

[Event "European Women Blitz-ch 2024"]
[Site "Monaco"]
[Date "2025.01.10"]
[Round "9.12"]
[White "Batsiashvili, Nino"]
[Black "Matnadze Bujiashvili, Ann"]
[Result "1-0"]
[Annotator "TA"]
[ECO "D38"]
[WhiteElo "2476"]
[BlackElo "2315"]
[PlyCount "77"]
[EventDate "2025.01.06"]
[EventType "swiss"]
[EventCountry "MNC"]
[SourceTitle "playchess.com"]
[Source "ChessBase"]
[SourceQuality "1"]
[TimeControl "180+2"]

{[%evp 11,77,8,37,36,75,57,53,40,55,18,67,76,152,56,87,41,48,64,47,51,121,134,185,128,190,190,193,195,489,169,233,233,235,178,300,291,321,321,393,377,395,371,1142,1169,984,177,225,185,243,239,669,491,826,824,968,976,29984,29985,29985,29986,29986,29987,29985,1380,29983,29984,29984,29985]} 1. d4 {[%emt 0:00:01]} Nf6 {[%emt 0:00:02]} 2. c4 {[%emt 0:00:01]} e6 {[%emt 0:00:01]} 3. Nc3 {[%emt 0:00:00]} Bb4 {[%emt 0:00:03]} 4. Nf3 {[%emt 0:00:02]} d5 {[%emt 0:00:02]} 5. Bg5 {[%emt 0:00:01]} h6 {[%emt 0:00:02]} 6. Bh4 {[%emt 0:00:00]} O-O {[%emt 0:00:13]} 7. e3 {[%emt 0:00:02]} a6 {[%emt 0:00:03]} 8. cxd5 {[%emt 0:00:03]} exd5 {[%emt 0:00:02]} 9. Bd3 {[%emt 0:00:01]} Be7 {[%emt 0:00:05]} 10. Qc2 {[%emt 0:00:12]} b6 {[%emt 0:00:15]} (10... Be6 $11 {should be considered.}) 11. O-O $14 {[%emt 0:00:13]} c5 {[%emt 0:00:05]} (11... Bb7 $142) 12. Ne5 {[%emt 0:00:34]} (12. dxc5 $16 {Bxf6 would now be deadly.} g5 13. Bg3) 12... Bb7 $14 {[%emt 0:00:04]} 13. Rad1 {[%emt 0:00:16]} (13. dxc5 $16 bxc5 14. Rfd1) 13... c4 $14 {[%emt 0:00:24]} 14. Bf5 {[%emt 0:00:03]} b5 {[%emt 0:00:02]} 15. a3 {[%emt 0:00:01]} Re8 {[%emt 0:00:22]} (15... Nbd7 $14) 16. f4 $16 {[%emt 0:00:11]} Nc6 {[%emt 0:00:04]} (16... Nbd7 $16) 17. g4 {[%emt 0:00:08]} ({White should play} 17. Bxf6 $18 {Bh7+ would kill now.} Bxf6 18. Bh7+ Kf8 19. Qf5) 17... b4 {[%emt 0:00:03] [#]} (17... Nxe5 $16 18. dxe5 Bc5) 18. axb4 $1 $18 {[%emt 0:00:02]} Nxb4 {[%emt 0:00:01]} 19. Qg2 {[%emt 0:00:08]} g6 $2 {[%emt 0:00:21]} (19... Nxg4 20. Bxe7 (20. Nxg4 Bxh4 21. b3 cxb3 $17) 20... Nxe3) 20. Bb1 $2 {[%emt 0:00:04]} (20. g5 hxg5 21. Bxg5 (21. fxg5 Nh7 $18)) 20... Nh7 {[%emt 0:00:06]} (20... Nd7) 21. Bxe7 $18 {[%emt 0:00:12]} Qxe7 {[%emt 0:00:01]} 22. Qg3 {[%emt 0:00:31]} Nf6 {[%emt 0:00:05]} (22... f6 {is a better defense.}) 23. g5 {[%emt 0:00:08]} Nh5 {[%emt 0:00:03]} 24. Qg2 {[%emt 0:00:07]} hxg5 {[%emt 0:00:25]} 25. fxg5 {[%emt 0:00:01]} Rf8 {[%emt 0:00:00]} 26. Rf3 {[%emt 0:00:02]} Bc8 $2 {[%emt 0:00:07]} (26... Nc6) 27. Rdf1 $18 {[%emt 0:00:03]} Be6 {[%emt 0:00:01]} 28. h4 $2 {[%emt 0:00:16]} (28. Bxg6 Ng7 29. Rxf7 (29. Nxf7 Nf5 $18) (29. Bxf7+ Rxf7 30. Rxf7 Bxf7 $18) 29... Bxf7 30. Bxf7+ Rxf7 31. Rxf7) 28... Kg7 {[%emt 0:00:00]} (28... Qd6 $142 29. Qf2 Nd3 30. Bxd3 (30. Nxd3 cxd3 31. Bxd3 Qe7 $16) 30... cxd3 31. Nxd3 (31. Nxf7 Bxf7 32. Rxf7 Rfe8 $16) 31... Rae8) 29. e4 {[%emt 0:00:06]} Qa7 {[%emt 0:00:05]} (29... dxe4 $142 30. Nxe4 (30. Bxe4 Rac8 $18) 30... Nd3) 30. Qf2 $18 {[%emt 0:00:05]} Rad8 $2 {[%emt 0:00:05]} (30... dxe4 31. Bxe4 (31. Nxe4 Rad8 $18) 31... Nd3 32. Nxd3 (32. Bxd3 cxd3 33. Rxd3 Bf5 $16) 32... cxd3) 31. Nxg6 {[%emt 0:00:06]} Kxg6 {[%emt 0:00:18]} (31... Rfe8 $142 32. exd5 Rxd5) 32. exd5+ $18 {[%emt 0:00:01]} (32. Nxd5 Bxd5 33. exd5+ Kg7 $17) 32... Kg7 {[%emt 0:00:01]} 33. dxe6 {[%emt 0:00:02]} Qxd4 {[%emt 0:00:05]} 34. Qxd4+ {[%emt 0:00:07]} (34. exf7 Nd3 35. Qxd4+ Rxd4 $16) 34... Rxd4 {[%emt 0:00:01]} 35. Rxf7+ {[%emt 0:00:00]} ({Not} 35. exf7 Rxh4 36. g6 Nd3 37. Bxd3 Rg4+ (37... cxd3 $2 {loses.} 38. Kf2 $16) 38. Kf2 cxd3 $16) 35... Rxf7 {[%emt 0:00:01]} 36. Rxf7+ {[%emt 0:00:01]} Kg8 {[%emt 0:00:01]} 37. g6 {[%emt 0:00:09]} (37. Bh7+ $142 Kh8 38. e7 Rg4+ 39. Kf2 Ng7 40. Rxg7 Kxg7 41. e8=Q (41. e8=R Kxh7 42. Re4 Rxe4 $16) 41... Kxh7 42. Qd7+ Kg6 43. Qxg4) 37... Rg4+ {[%emt 0:00:10]} 38. Kf2 {[%emt 0:00:01]} Ng7 {[%emt 0:00:17]} 39. e7 {[%emt 0:00:02]} 1-0

[Event "European Women Blitz-ch 2024"]
[Site "Monaco"]
[Date "2025.01.10"]
[Round "9.13"]
[White "Osmak, Yuliia"]
[Black "Gaponenko, Inna"]
[Result "1-0"]
[Annotator "TA"]
[ECO "A00"]
[WhiteElo "2463"]
[BlackElo "2346"]
[PlyCount "41"]
[EventDate "2025.01.06"]
[EventType "swiss"]
[EventCountry "MNC"]
[SourceTitle "playchess.com"]
[Source "ChessBase"]
[SourceQuality "1"]
[TimeControl "180+2"]

{[%evp 9,41,0,7,9,18,14,32,0,0,9,4,0,0,0,0,0,0,0,0,-25,-8,-29,-29,-49,0,0,0,0,0,0,0,0,730,704]} 1. b4 {[%emt 0:00:01]} e5 {[%emt 0:00:03]} 2. Bb2 {[%emt 0:00:00]} Bxb4 {[%emt 0:00:01]} 3. Bxe5 {[%emt 0:00:01]} Nf6 {[%emt 0:00:01]} 4. e3 {[%emt 0:00:01]} O-O {[%emt 0:00:03]} 5. Nf3 {[%emt 0:00:00]} Nc6 {[%emt 0:00:02]} 6. Bb2 {[%emt 0:00:01]} d5 {[%emt 0:00:00]} 7. Be2 {[%emt 0:00:01]} Bc5 {[%emt 0:00:10]} 8. O-O {[%emt 0:00:02]} d4 {[%emt 0:00:00]} 9. Bb5 {[%emt 0:00:19]} Bg4 {[%emt 0:00:22]} 10. Bxc6 {[%emt 0:00:17]} bxc6 {[%emt 0:00:01]} 11. Bxd4 {[%emt 0:00:06]} Bxd4 {[%emt 0:00:04]} 12. exd4 {[%emt 0:00:01]} Bxf3 {[%emt 0:00:21]} 13. Qxf3 {[%emt 0:00:01]} Qxd4 {[%emt 0:00:01]} 14. c3 {[%emt 0:00:13]} Qd5 {[%emt 0:00:02]} 15. Qg3 {[%emt 0:00:12]} (15. Qxd5 {simplifies} cxd5 16. Na3 Rab8 17. Rfb1) 15... Ne4 {[%emt 0:00:45]} 16. Qxc7 {[%emt 0:00:05]} Nxd2 {[%emt 0:00:01]} (16... Rfe8 $15) 17. Nxd2 $11 {[%emt 0:00:06]} Qxd2 {[%emt 0:00:01]} 18. Qxc6 {[%emt 0:00:11]} Rfc8 {[%emt 0:00:04]} 19. Qb7 {[%emt 0:00:03]} Qxc3 {[%emt 0:00:12]} 20. Rad1 {[%emt 0:00:03]} Qc6 $2 {[%emt 0:00:08][%mdl 8192] [#]} (20... Qa5 $11) 21. Rd8+ $3 {[%emt 0:00:04][%mdl 512]} 1-0